bitfinex-derivatives/quotes_BTCF0:USTF0_20260118
["timestamp","ask_amount","ask_price","bid_price","bid_amount"]
[1768766744205,0.02210562,95420.0,95404.0,0.09382689]
[1768766744403,0.02210562,95419.0,95404.0,0.09382689]
[1768766744604,0.02210562,95418.0,95404.0,0.09382689]
[1768766744903,0.02210562,95417.0,95404.0,0.09382689]
[1768766745103,0.02210562,95416.0,95404.0,0.09382689]
[1768766745304,0.02210562,95415.0,95404.0,0.09382689]
[1768766745504,0.02210562,95414.0,95404.0,0.09382689]
[1768766745701,0.0944,95421.0,95404.0,0.09382689]
[1768766745902,0.02210622,95420.0,95404.0,0.09382689]
[1768766746093,0.02210622,95419.0,95404.0,0.09382689]
[1768766746307,0.02210622,95418.0,95404.0,0.09382689]
[1768766746506,0.02210622,95417.0,95404.0,0.09382689]
[1768766746805,0.02210622,95416.0,95404.0,0.09382689]
[1768766747006,0.02210622,95415.0,95404.0,0.09382689]
[1768766747199,0.02210622,95414.0,95404.0,0.09382689]
[1768766747403,0.0944,95421.0,95404.0,0.09382689]
[1768766747699,0.02210699,95420.0,95404.0,0.09382689]
[1768766747900,0.02210699,95419.0,95404.0,0.09382689]
[1768766748100,0.02210699,95418.0,95404.0,0.09382689]
[1768766748299,0.02210699,95417.0,95404.0,0.09382689]
[1768766748594,0.02210699,95416.0,95404.0,0.09382689]
[1768766748803,0.02210699,95415.0,95404.0,0.09382689]
[1768766749002,0.02210699,95414.0,95404.0,0.09382689]
[1768766749203,0.0944,95421.0,95404.0,0.09382689]
[1768766749391,0.02210751,95420.0,95404.0,0.09382689]
[1768766749596,0.02210751,95419.0,95404.0,0.09382689]
[1768766749793,0.02210751,95418.0,95404.0,0.09382689]
[1768766749997,0.02210751,95417.0,95404.0,0.09382689]
[1768766750205,0.0944,95421.0,95404.0,0.09382689]
[1768766750206,0.02210751,95416.0,95404.0,0.09382689]
[1768766750398,0.02210751,95415.0,95404.0,0.09382689]
[1768766750598,0.02210751,95414.0,95404.0,0.09382689]
[1768766750802,0.0944,95421.0,95404.0,0.09382689]
[1768766751006,0.02210761,95420.0,95404.0,0.09382689]
[1768766751305,0.02210761,95419.0,95404.0,0.09382689]
[1768766751504,0.02210761,95418.0,95404.0,0.09382689]
[1768766751710,0.02210761,95417.0,95404.0,0.09382689]
[1768766751907,0.02210761,95416.0,95404.0,0.09382689]
[1768766752108,0.02210761,95415.0,95404.0,0.09382689]
[1768766752310,0.02210761,95414.0,95404.0,0.09382689]
[1768766752502,0.0944,95421.0,95404.0,0.09382689]
[1768766752703,0.02210962,95420.0,95404.0,0.09382689]
[1768766752903,0.02210962,95419.0,95405.0,0.10844145]
[1768766753103,0.02210962,95418.0,95406.0,0.09600595]
[1768766753409,0.0944,95421.0,95406.0,0.09600595]
[1768766753612,0.02210727,95420.0,95406.0,0.09600595]
[1768766753822,0.02210727,95419.0,95406.0,0.09600595]
[1768766754002,0.02210727,95418.0,95406.0,0.09600595]
[1768766754202,0.0944,95421.0,95406.0,0.09600595]
[1768766754504,0.02210731,95420.0,95406.0,0.09600595]
[1768766754705,0.02210731,95419.0,95407.0,0.09600595]
[1768766754912,0.02210731,95418.0,95407.0,0.09600595]
[1768766755113,0.0944,95421.0,95407.0,0.09600595]
[1768766755312,0.02210568,95420.0,95407.0,0.09600595]
[1768766755513,0.02210568,95419.0,95407.0,0.09600595]
[1768766755716,0.0944,95421.0,95407.0,0.09600595]
[1768766756012,0.0221042,95420.0,95407.0,0.09600595]
[1768766756213,0.0221042,95419.0,95407.0,0.09600595]
[1768766756417,0.0944,95421.0,95407.0,0.09600595]
[1768766756607,0.0221022,95420.0,95407.0,0.09600595]
[1768766756807,0.0221022,95419.0,95407.0,0.09600595]
[1768766757015,0.0944,95421.0,95407.0,0.09600595]
[1768766757216,0.02210219,95420.0,95407.0,0.09600595]
[1768766757515,0.02210219,95419.0,95407.0,0.09600595]
[1768766757716,0.0944,95421.0,95407.0,0.09600595]
[1768766758017,0.02210114,95420.0,95407.0,0.09600595]
[1768766758208,0.0944,95421.0,95407.0,0.09600595]
[1768766758406,0.02210124,95420.0,95407.0,0.09600595]
[1768766758609,0.0944,95421.0,95407.0,0.09600595]
[1768766758816,0.02210008,95420.0,95407.0,0.09600595]
[1768766759021,0.0944,95421.0,95407.0,0.09600595]
[1768766759216,0.02210008,95420.0,95407.0,0.09600595]
[1768766759416,0.0944,95421.0,95407.0,0.09600595]
[1768766759714,0.02209909,95420.0,95407.0,0.09600595]
[1768766759904,0.0944,95421.0,95407.0,0.09600595]
[1768766760107,0.02209905,95420.0,95407.0,0.09600595]
[1768766760316,0.02209905,95419.0,95407.0,0.09600595]
[1768766760611,0.0944,95421.0,95409.0,0.10453519]
[1768766760817,0.02209866,95420.0,95409.0,0.09600595]
[1768766761116,0.02209866,95419.0,95409.0,0.09600595]
[1768766761418,0.0944,95421.0,95409.0,0.09600595]
[1768766761619,0.02209676,95420.0,95409.0,0.09600595]
[1768766761817,0.02209676,95419.0,95409.0,0.09600595]
[1768766762018,0.0944,95421.0,95409.0,0.09600595]
[1768766762216,0.02209676,95420.0,95409.0,0.09600595]
[1768766762519,0.0944,95421.0,95409.0,0.09600595]
[1768766762718,0.02209518,95420.0,95409.0,0.09600595]
[1768766762920,0.0944,95421.0,95409.0,0.09600595]
[1768766763112,0.02209518,95420.0,95409.0,0.09600595]
[1768766763317,0.0944,95423.0,95409.0,0.09600595]
[1768766763518,0.02209374,95422.0,95409.0,0.09600595]
[1768766763718,0.02209374,95421.0,95409.0,0.09600595]
[1768766763919,0.02209374,95420.0,95409.0,0.09600595]
[1768766764121,0.0944,95423.0,95409.0,0.09600595]
[1768766764317,0.02209275,95422.0,95409.0,0.09600595]
[1768766764517,0.02209275,95421.0,95409.0,0.09600595]
[1768766764718,0.02209275,95420.0,95409.0,0.09600595]
[1768766765021,0.0944,95423.0,95409.0,0.09600595]
[1768766765223,0.02209255,95422.0,95409.0,0.09600595]
[1768766765420,0.02209255,95421.0,95409.0,0.09600595]
[1768766765618,0.02209255,95420.0,95409.0,0.09600595]
[1768766765818,0.0944,95423.0,95409.0,0.09600595]
[1768766766014,0.02209158,95422.0,95409.0,0.09600595]
[1768766766218,0.02209158,95421.0,95409.0,0.09600595]
[1768766766420,0.02209158,95420.0,95409.0,0.09600595]
[1768766766623,0.0944,95423.0,95409.0,0.09600595]
[1768766766817,0.02209074,95422.0,95409.0,0.09600595]
[1768766767018,0.02209074,95421.0,95409.0,0.09600595]
[1768766767218,0.02209074,95420.0,95409.0,0.09600595]
[1768766767419,0.0944,95423.0,95409.0,0.09600595]
[1768766767618,0.0220901,95422.0,95409.0,0.09600595]
[1768766767818,0.0220901,95421.0,95409.0,0.09600595]
[1768766768020,0.0220901,95420.0,95409.0,0.09600595]
[1768766768220,0.0944,95423.0,95409.0,0.09600595]
[1768766768419,0.02208977,95422.0,95409.0,0.09600595]
[1768766768632,0.11200029,95419.0,95398.0,0.09600595]
[1768766768831,0.10453519,95410.0,95396.0,0.0944]
[1768766770830,0.11200029,95415.0,95396.0,0.0944]
[1768766771026,0.10453519,95410.0,95396.0,0.0944]
[1768766776540,0.10453519,95410.0,95393.0,0.09600595]
[1768766776841,0.10453519,95410.0,95393.0,0.20082445]
[1768766777041,0.10453519,95410.0,95394.0,0.09600595]
[1768766777648,0.10453519,95410.0,95395.0,0.1048196]
[1768766780151,0.10453519,95410.0,95395.0,0.20082555]
[1768766780649,0.10453519,95410.0,95395.0,0.09600595]
[1768766780949,0.10453519,95410.0,95396.0,0.10481905]
[1768766789751,0.10453519,95410.0,95396.0,0.20398674]
[1768766798954,0.11200029,95415.0,95396.0,0.20398674]
[1768766799160,0.10453519,95410.0,95396.0,0.20398674]
[1768766802662,0.10453519,95410.0,95397.0,0.09502454]
[1768766820870,0.20640029,95415.0,95397.0,0.09502454]
[1768766821070,0.02278812,95414.0,95397.0,0.09502454]
[1768766821371,0.20640029,95415.0,95397.0,0.09502454]
[1768766821570,0.02278811,95414.0,95397.0,0.09502454]
[1768766821771,0.20640029,95415.0,95397.0,0.09502454]
[1768766821972,0.02278813,95414.0,95397.0,0.09502454]
[1768766822170,0.20640029,95415.0,95397.0,0.09502454]
[1768766822366,0.11313029,95407.0,95385.0,0.09992339]
[1768766822571,0.02278736,95414.0,95350.0,0.2034]
[1768766822572,0.20589121,95402.0,95381.0,0.0944]
[1768766822759,0.20589121,95401.0,95380.0,0.09992339]
[1768766822962,0.11313029,95400.0,95380.0,0.09992339]
[1768766825364,0.20589121,95399.0,95377.0,0.01333914]
[1768766825565,0.20589121,95399.0,95374.0,0.19432339]
[1768766825876,0.11313029,95398.0,95378.0,0.10483279]
[1768766826067,0.11313029,95398.0,95375.0,0.09992339]
[1768766826372,0.11313029,95398.0,95376.0,0.09992339]
[1768766826875,0.010486,95392.0,95376.0,0.09992339]
[1768766827070,0.010486,95392.0,95377.0,0.10483663]
[1768766827874,0.010487,95389.0,95377.0,0.10483663]
[1768766828173,0.010487,95389.0,95376.0,0.09992339]
[1768766834872,0.010487,95387.0,95376.0,0.09992339]
[1768766838780,0.010487,95387.0,95374.0,0.01214024]
[1768766838781,0.010487,95384.0,95374.0,0.01214024]
[1768766838978,0.010487,95384.0,95371.0,0.09992339]
[1768766839979,0.010487,95387.0,95371.0,0.09992339]
[1768766841475,0.010487,95387.0,95371.0,0.11227517]
[1768766841675,0.010487,95387.0,95372.0,0.21068363]
[1768766841873,0.010487,95387.0,95373.0,0.09992339]
[1768766842274,0.010487,95387.0,95374.0,0.09992339]
[1768766843687,0.0944,95390.0,95374.0,0.09992339]
[1768766845083,0.010487,95389.0,95374.0,0.09992339]
[1768766849787,0.010487,95389.0,95375.0,0.09365145]
[1768766853689,0.010487,95387.0,95375.0,0.09365145]
[1768766856392,0.010487,95385.0,95375.0,0.09365145]
[1768766857792,0.104887,95385.0,95375.0,0.09365145]
[1768766859397,0.104887,95385.0,95371.0,0.01235178]
[1768766859398,0.010487,95382.0,95371.0,0.01235178]
[1768766859583,0.104887,95385.0,95370.0,0.11373559]
[1768766859787,0.0944,95385.0,95372.0,0.09388756]
[1768766860097,0.0944,95385.0,95373.0,0.09388756]
[1768766860586,0.0944,95385.0,95373.0,0.20762315]
[1768766860788,0.0944,95385.0,95374.0,0.09388756]
[1768766867603,0.0944,95384.0,95376.0,0.09388756]
[1768766867797,0.0944,95383.0,95376.0,0.09388756]
[1768766871205,0.10994195,95381.0,95357.0,0.10437756]
[1768766871506,0.010488,95375.0,95359.0,0.09388756]
[1768766871695,0.010488,95373.0,95359.0,0.09388756]
[1768766871894,0.10994195,95381.0,95359.0,0.09388756]
[1768766872193,0.10994195,95381.0,95361.0,0.09388756]
[1768766873805,0.2024635,95381.0,95361.0,0.09388756]
[1768766874012,0.1107441,95380.0,95361.0,0.09388756]
[1768766874200,0.010488,95374.0,95361.0,0.09388756]
[1768766875400,0.1107441,95376.0,95359.0,0.01191137]
[1768766875604,0.010489,95370.0,95356.0,0.20388802]
[1768766876102,0.0944,95371.0,95356.0,0.09047083]
[1768766876103,0.010489,95366.0,95356.0,0.09047083]
[1768766876500,0.010489,95370.0,95356.0,0.09047083]
[1768766876903,0.0944,95371.0,95356.0,0.09047083]
[1768766876904,0.010489,95368.0,95356.0,0.09047083]
[1768766878614,0.010489,95368.0,95356.0,0.10251521]
[1768766879210,0.104889,95371.0,95356.0,0.10251521]
[1768766881099,0.0944,95371.0,95357.0,0.09047083]
[1768766882012,0.0944,95371.0,95358.0,0.09047083]
[1768766882211,0.0944,95371.0,95359.0,0.09047083]
[1768766882409,0.21375265,95381.0,95360.0,0.09047083]
[1768766882718,0.010488,95379.0,95360.0,0.09047083]
[1768766883010,0.1046438,95370.0,95360.0,0.09047083]
[1768766883512,0.010488,95379.0,95360.0,0.09047083]
[1768766883704,0.1046438,95370.0,95360.0,0.09047083]
[1768766884300,0.010488,95376.0,95360.0,0.09047083]
[1768766884608,0.1046438,95370.0,95360.0,0.09047083]
[1768766884910,0.010488,95376.0,95360.0,0.09047083]
[1768766885122,0.1046438,95370.0,95360.0,0.09047083]
[1768766886209,0.1151328,95370.0,95360.0,0.09047083]
[1768766886510,0.1046438,95370.0,95360.0,0.09047083]
[1768766891013,0.010488,95376.0,95360.0,0.09047083]
[1768766891309,0.1046438,95370.0,95360.0,0.09047083]
[1768766892006,0.1990438,95370.0,95360.0,0.09047083]
[1768766892402,0.010489,95369.0,95356.0,0.01204438]
[1768766892609,0.1046438,95366.0,95355.0,0.11341719]
[1768766892815,0.1046438,95366.0,95350.0,0.11341719]
[1768766893012,0.0944,95370.0,95342.0,0.0944]
[1768766893013,0.1046438,95360.0,95346.0,0.11341719]
[1768766894320,0.1046438,95360.0,95347.0,0.09047083]
[1768766896120,0.1046438,95360.0,95349.0,0.01437449]
[1768766898520,0.01049,95359.0,95349.0,0.01437449]
[1768766898721,0.1046438,95360.0,95349.0,0.01437449]
[1768766900518,0.01049,95359.0,95349.0,0.01437449]
[1768766902721,0.1046438,95360.0,95349.0,0.01437449]
[1768766911726,0.1046438,95360.0,95351.0,0.010491]
[1768766911927,0.1046438,95360.0,95349.0,0.01437449]
[1768766912130,0.1046438,95360.0,95350.0,0.010491]
[1768766912327,0.0944,95363.0,95350.0,0.010491]
[1768766912530,0.0944,95363.0,95352.0,0.010491]
[1768766917227,0.0944,95363.0,95354.0,0.01049]
[1768766918726,0.0944,95363.0,95351.0,0.010491]
[1768766919836,0.0944,95363.0,95353.0,0.01049]
[1768766920132,0.20894202,95363.0,95353.0,0.01049]
[1768766925037,0.11454202,95363.0,95353.0,0.01049]
[1768766929339,0.11454202,95363.0,95349.0,0.01437449]
[1768766929742,0.11454202,95363.0,95352.0,0.010491]
[1768766930239,0.11454202,95363.0,95349.0,0.01437449]
[1768766931543,0.11454202,95363.0,95354.0,0.01049]
[1768766936550,0.11454202,95363.0,95350.0,0.1046438]
[1768766936936,0.11454202,95363.0,95353.0,0.01049]
[1768766937441,0.11309228,95361.0,95350.0,0.010491]
[1768766937645,0.21773608,95360.0,95350.0,0.010491]
[1768766938256,0.21773608,95360.0,95349.0,0.01437449]
[1768766938557,0.21773608,95360.0,95350.0,0.010491]
[1768766940260,0.21773608,95360.0,95349.0,0.01437449]
[1768766940655,0.11309228,95358.0,95346.0,0.010491]
[1768766940861,0.2108097,95355.0,95344.0,0.00230743]
[1768766941061,0.11309228,95354.0,95341.0,0.09444]
[1768766941256,0.11309228,95354.0,95345.0,0.10487182]
[1768766941456,0.11309228,95354.0,95341.0,0.09444]
[1768766941856,0.11309228,95354.0,95342.0,0.10487182]
[1768766941857,0.2108097,95354.0,95342.0,0.10487182]
[1768766942056,0.1046438,95352.0,95342.0,0.10487182]
[1768766942260,0.11309228,95353.0,95342.0,0.11536382]
[1768766942448,0.11309228,95353.0,95344.0,0.010491]
[1768766943363,0.11309228,95353.0,95344.0,0.02337273]
[1768766950668,0.11309228,95353.0,95341.0,0.09444]
[1768766951072,0.11309228,95353.0,95342.0,0.10487841]
[1768766951470,0.11309228,95353.0,95344.0,0.010491]
[1768766951670,0.11309228,95353.0,95342.0,0.10487841]
[1768766951971,0.11309228,95353.0,95342.0,0.01322704]
[1768766952161,0.11309228,95353.0,95340.0,8.278e-05]
[1768766952366,0.11309228,95353.0,95340.0,0.01332698]
[1768766952564,0.11309228,95353.0,95342.0,0.10487841]
[1768766952975,0.11309228,95353.0,95340.0,0.01332698]
[1768766953276,0.11309228,95353.0,95341.0,0.10487951]
[1768766953872,0.11309228,95352.0,95341.0,0.10487951]
[1768766954065,0.11309228,95349.0,95340.0,0.01332698]
[1768766955667,0.11309228,95349.0,95340.0,0.02381898]
[1768766959180,0.09444,95357.0,95329.0,0.09674781]
[1768766959181,0.11309228,95344.0,95329.0,0.09674781]
[1768766959572,0.11309228,95344.0,95330.0,0.10488281]
[1768766959773,0.09771742,95345.0,95330.0,0.10488281]
[1768766959976,0.11309228,95348.0,95330.0,0.10488281]
[1768766960173,0.2108097,95346.0,95330.0,0.10488281]
[1768766960371,0.11309228,95345.0,95330.0,0.10488281]
[1768766960780,0.11309228,95345.0,95330.0,0.118265]
[1768766961180,0.11309228,95345.0,95337.0,0.010492]
[1768766961380,0.11309228,95345.0,95330.0,0.118265]
[1768766961577,0.09771742,95346.0,95330.0,0.01338219]
[1768766961883,0.09771742,95346.0,95331.0,0.10489052]
[1768766962288,0.09771742,95346.0,95329.0,0.09674781]
[1768766962484,0.09771742,95346.0,95336.0,0.010492]
[1768766962687,0.09771742,95346.0,95330.0,0.10488997]
[1768766962988,0.09771742,95346.0,95329.0,0.09674781]
[1768766963187,0.09771742,95346.0,95330.0,0.10488666]
[1768766963388,0.09771742,95346.0,95336.0,0.010492]
[1768766964294,0.09771742,95346.0,95329.0,0.11027684]
[1768766964295,0.21452605,95346.0,95329.0,0.11027684]
[1768766964587,0.21452605,95346.0,95330.0,0.10488666]
[1768766964788,0.21452605,95346.0,95334.0,0.010492]
[1768766965288,0.11680863,95344.0,95330.0,0.010493]
[1768766965484,0.11680863,95344.0,95329.0,0.12076984]
[1768766965795,0.11680863,95344.0,95330.0,0.10488997]
[1768766967586,0.11680863,95344.0,95331.0,0.010493]
[1768766967885,0.11680863,95344.0,95334.0,0.010493]
[1768766969082,0.11680863,95344.0,95330.0,0.010493]
[1768766969388,0.11680863,95344.0,95330.0,0.11538187]
[1768766972791,0.11680863,95344.0,95330.0,0.10488887]
[1768766972991,0.11680863,95342.0,95330.0,0.10488887]
[1768766973192,0.11680863,95341.0,95330.0,0.10488887]
[1768766973383,0.11680863,95341.0,95329.0,0.11027684]
[1768766973583,0.09959067,95342.0,95329.0,0.01583684]
[1768766973584,0.11680863,95339.0,95329.0,0.01583684]
[1768766973984,0.11680863,95341.0,95329.0,0.01583684]
[1768766979093,0.09853646,95340.0,95329.0,0.01583684]
[1768766979297,0.11176887,95339.0,95329.0,0.01583684]
[1768766979501,0.11176887,95338.0,95329.0,0.01583684]
[1768766982601,0.11176887,95345.0,95329.0,0.02632984]
[1768766983897,0.11176887,95345.0,95329.0,0.01583684]
[1768766984303,0.11176887,95345.0,95330.0,0.010493]
[1768766984799,0.09444,95346.0,95329.0,0.01583684]
[1768766986407,0.09444,95346.0,95334.0,0.010492]
[1768766991214,0.20620887,95346.0,95334.0,0.010492]
[1768766991814,0.09444,95346.0,95336.0,0.010492]
[1768766993615,0.11793109,95347.0,95336.0,0.010492]
[1768766993818,0.11783921,95346.0,95333.0,0.010493]
[1768766994919,0.11783921,95346.0,95335.0,0.010492]
[1768766995417,0.11783921,95346.0,95329.0,0.01583684]
[1768766996118,0.11783921,95346.0,95333.0,0.010493]
[1768766996318,0.11783921,95346.0,95335.0,0.010492]
[1768766996914,0.11783921,95346.0,95329.0,0.01583684]
[1768766997218,0.0979159,95345.0,95329.0,0.01583684]
[1768766997519,0.11783921,95344.0,95329.0,0.01583684]
[1768766998522,0.11783921,95344.0,95333.0,0.010493]
[1768767001427,0.11783921,95344.0,95335.0,0.010492]
[1768767001627,0.11783921,95344.0,95332.0,0.010493]
[1768767002729,0.11783921,95344.0,95334.0,0.010493]
[1768767003526,0.11783921,95344.0,95329.0,0.01583684]
[1768767003726,0.11783921,95344.0,95332.0,0.010493]
[1768767003927,0.11783921,95344.0,95329.0,0.01583684]
[1768767004533,0.11783921,95344.0,95332.0,0.010493]
[1768767004722,0.11783921,95344.0,95334.0,0.010493]
[1768767005128,0.11783921,95344.0,95330.0,0.10469616]
[1768767005431,0.11783921,95344.0,95334.0,0.010493]
[1768767005631,0.11783921,95344.0,95330.0,0.10469616]
[1768767006432,0.11783921,95344.0,95334.0,0.010493]
[1768767006728,0.0979159,95341.0,95325.0,0.07550318]
[1768767007028,0.11783921,95330.0,95319.0,0.010494]
[1768767007232,0.07405182,95331.0,95320.0,0.10469616]
[1768767007432,0.07405182,95331.0,95316.0,0.09444]
[1768767007433,0.07405182,95331.0,95318.0,0.10489547]
[1768767007626,0.07405182,95331.0,95316.0,0.104935]
[1768767007827,0.07405182,95331.0,95317.0,0.10489547]
[1768767008432,0.10469616,95330.0,95317.0,0.10489547]
[1768767008627,0.10469616,95330.0,95317.0,0.1194587]
[1768767009233,0.11783921,95329.0,95317.0,0.1194587]
[1768767009432,0.11783921,95328.0,95317.0,0.1194587]
[1768767010628,0.11783921,95328.0,95312.0,0.09444]
[1768767011024,0.11783921,95328.0,95318.0,0.10490702]
[1768767011236,0.11783921,95328.0,95312.0,0.09444]
[1768767011534,0.11783921,95328.0,95319.0,0.10490977]
[1768767011735,0.11783921,95328.0,95317.0,0.01411449]
[1768767012035,0.11783921,95328.0,95320.0,0.10490977]
[1768767012234,0.11783921,95328.0,95316.0,0.010495]
[1768767012435,0.21575511,95327.0,95316.0,0.010495]
[1768767012643,0.11783921,95326.0,95316.0,0.010495]
[1768767013435,0.21575511,95326.0,95316.0,0.010495]
[1768767013632,0.11783921,95325.0,95316.0,0.010495]
[1768767014229,0.11783921,95325.0,95313.0,0.010495]
[1768767014629,0.11783921,95324.0,95313.0,0.11540422]
[1768767015932,0.11783921,95324.0,95313.0,0.13004916]
[1768767016735,0.11783921,95324.0,95313.0,0.11955416]
[1768767028850,0.21616345,95323.0,95313.0,0.11955416]
[1768767029045,0.11635316,95322.0,95313.0,0.11955416]
[1768767029650,0.09981029,95323.0,95313.0,0.11955416]
[1768767030046,0.11635316,95326.0,95313.0,0.11955416]
[1768767031954,0.09981029,95326.0,95313.0,0.11955416]
[1768767037854,0.09444,95332.0,95319.0,0.010494]
[1768767038050,0.09444,95332.0,95320.0,0.10469616]
[1768767038957,0.09444,95332.0,95319.0,0.010494]
[1768767039159,0.09444,95332.0,95320.0,0.10469616]
[1768767039651,0.10119201,95341.0,95321.0,0.010494]
[1768767039857,0.09070001,95341.0,95330.0,0.10469616]
[1768767040056,0.09444,95340.0,95330.0,0.10469616]
[1768767040657,0.09444,95340.0,95323.0,0.010494]
[1768767040860,0.09444,95340.0,95323.0,0.12872555]
[1768767042557,0.00230743,95344.0,95331.0,0.12872455]
[1768767046856,9.188e-05,95347.0,95334.0,0.31613163]
[1768767047062,9.188e-05,95347.0,95337.0,0.10469616]
[1768767047364,9.188e-05,95347.0,95335.0,0.12872355]
[1768767049663,9.188e-05,95347.0,95337.0,0.10469616]
[1768767049864,0.00230733,95349.0,95335.0,0.12872355]
[1768767050062,0.00230733,95349.0,95339.0,0.22292771]
[1768767050563,0.00230733,95349.0,95337.0,0.010492]
[1768767050758,0.00230733,95349.0,95332.0,0.010493]
[1768767051070,0.00230733,95349.0,95336.0,0.10488556]
[1768767051475,0.00230733,95349.0,95333.0,0.21143547]
[1768767051768,0.00230733,95349.0,95334.0,0.22311877]
[1768767053767,0.10469616,95344.0,95328.0,0.09444]
[1768767053969,0.10469616,95340.0,95328.0,0.09444]
[1768767054268,0.10469616,95340.0,95329.0,0.10488611]
[1768767054770,0.09920743,95346.0,95329.0,0.10488611]
[1768767054965,0.10969843,95346.0,95329.0,0.10488611]
[1768767056566,0.010492,95343.0,95329.0,0.10488611]
[1768767056779,0.10469616,95340.0,95329.0,0.10488611]
[1768767057073,0.09920743,95346.0,95329.0,0.10488611]
[1768767057258,0.11547048,95345.0,95329.0,0.10488611]
[1768767057666,0.010492,95342.0,95329.0,0.10488611]
[1768767058673,0.11547048,95345.0,95329.0,0.10488611]
[1768767058978,0.22516991,95339.0,95324.0,0.00230792]
[1768767059170,0.09920743,95337.0,95324.0,0.00230792]
[1768767059476,0.11547048,95336.0,95324.0,0.00230792]
[1768767060474,0.09444,95341.0,95326.0,0.10469616]
[1768767060674,0.010491,95347.0,95331.0,0.11813086]
[1768767061071,0.010491,95347.0,95330.0,0.09770095]
[1768767061468,0.12596148,95347.0,95329.0,0.010493]
[1768767062777,0.12596148,95347.0,95327.0,0.11813086]
[1768767063080,0.12596148,95347.0,95328.0,0.010493]
[1768767063784,0.010491,95345.0,95327.0,0.11813086]
[1768767067972,0.010492,95342.0,95327.0,0.11813086]
[1768767069572,0.010491,95345.0,95327.0,0.12862386]
[1768767069778,0.010491,95348.0,95329.0,0.12862386]
[1768767070089,0.010491,95348.0,95331.0,0.22632481]
[1768767070287,0.010491,95348.0,95332.0,0.11813086]
[1768767070488,0.010491,95348.0,95333.0,0.11813086]
[1768767070677,0.104931,95348.0,95333.0,0.11813086]
[1768767072383,0.00230695,95364.0,95337.0,0.21583181]
[1768767072595,0.01049,95362.0,95346.0,0.11813086]
[1768767072885,0.0241453,95361.0,95346.0,0.11813086]
[1768767073089,0.09444,95363.0,95345.0,0.09770095]
[1768767073090,0.0346353,95360.0,95345.0,0.09770095]
[1768767073292,0.01049,95360.0,95345.0,0.09770095]
[1768767073790,0.01049,95362.0,95345.0,0.09770095]
[1768767073994,0.02394147,95361.0,95345.0,0.09770095]
[1768767074186,0.01049,95362.0,95345.0,0.09770095]
[1768767074490,0.02392559,95361.0,95345.0,0.09770095]
[1768767074683,0.01049,95362.0,95345.0,0.09770095]
[1768767074881,0.02392587,95361.0,95345.0,0.09770095]
[1768767075082,0.01049,95362.0,95345.0,0.09770095]
[1768767075283,0.02392255,95361.0,95345.0,0.09770095]
[1768767075593,0.01049,95362.0,95345.0,0.09539352]
[1768767075792,0.02392294,95361.0,95345.0,0.09539352]
[1768767075997,0.01049,95362.0,95345.0,0.09539352]
[1768767080197,0.01049,95362.0,95345.0,0.21352438]
[1768767082599,0.09444,95363.0,95345.0,0.21352438]
[1768767083200,0.0239119,95362.0,95345.0,0.21352438]
[1768767083403,0.01049,95360.0,95348.0,0.10831013]
[1768767084399,0.10802603,95381.0,95352.0,0.19926599]
[1768767084702,0.11835393,95368.0,95349.0,0.19926599]
[1768767084898,0.02391393,95367.0,95349.0,0.19926599]
[1768767085097,0.09444,95368.0,95350.0,0.10831013]
[1768767085293,0.0239117,95367.0,95350.0,0.10831013]
[1768767085499,0.09444,95368.0,95350.0,0.10831013]
[1768767085802,0.0239117,95367.0,95349.0,0.09111322]
[1768767086002,0.20246603,95368.0,95349.0,0.09111322]
[1768767086196,0.09133869,95366.0,95349.0,0.00015736]
[1768767086390,0.09133869,95364.0,95349.0,0.00015736]
[1768767086802,0.10802603,95363.0,95349.0,0.00015736]
[1768767087402,0.01049,95358.0,95349.0,0.00015736]
[1768767087602,0.01049,95358.0,95342.0,0.10831013]
[1768767088098,0.01049,95355.0,95343.0,0.10487017]
[1768767088300,0.10802603,95355.0,95334.0,0.10831013]
[1768767088506,0.10802603,95355.0,95331.0,0.09095586]
[1768767088507,0.11851703,95351.0,95331.0,0.19926599]
[1768767088801,0.11851703,95351.0,95333.0,0.10487676]
[1768767089005,0.010491,95351.0,95334.0,0.10831013]
[1768767092809,0.19936472,95354.0,95334.0,0.10831013]
[1768767093710,0.010491,95352.0,95334.0,0.10831013]
[1768767094410,0.010491,95350.0,95334.0,0.10831013]
[1768767096405,0.010491,95354.0,95338.0,0.19926599]
[1768767096612,0.010491,95354.0,95342.0,0.19926599]
[1768767097111,0.010491,95354.0,95343.0,0.11423349]
[1768767097508,0.010491,95354.0,95342.0,0.09095586]
[1768767097703,0.09444,95356.0,95344.0,0.2049258]
[1768767097902,0.09444,95356.0,95345.0,0.11423349]
[1768767098106,0.01049,95355.0,95345.0,0.11423349]
[1768767098808,0.09444,95356.0,95345.0,0.11423349]
[1768767099013,0.09444,95356.0,95346.0,0.11423349]
[1768767099315,0.01049,95358.0,95346.0,0.11423349]
[1768767099509,0.09444,95357.0,95346.0,0.11423349]
[1768767099713,0.01049,95356.0,95346.0,0.11423349]
[1768767104316,0.01049,95356.0,95345.0,0.09069231]
[1768767104817,0.010491,95354.0,95345.0,0.09069231]
[1768767105118,0.010491,95354.0,95344.0,0.00230743]
[1768767107323,0.09444,95357.0,95344.0,0.00230743]
[1768767109416,0.01049,95354.0,95344.0,0.00230743]
[1768767111423,0.010491,95352.0,95344.0,0.00230743]
[1768767114325,0.09444,95355.0,95344.0,0.00230743]
[1768767120628,0.09444,95356.0,95344.0,0.12095644]
[1768767121028,0.09444,95356.0,95344.0,0.00230743]
[1768767121623,0.01049,95362.0,95345.0,0.11864901]
[1768767121829,0.12888402,95361.0,95346.0,0.09954455]
[1768767122127,0.01049,95359.0,95346.0,0.09954455]
[1768767122529,0.01049,95359.0,95345.0,0.11864901]
[1768767125924,0.09444,95361.0,95346.0,0.21819356]
[1768767126126,0.09444,95361.0,95347.0,0.11864901]
[1768767126127,0.02368627,95360.0,95347.0,0.11864901]
[1768767126323,0.02368627,95359.0,95347.0,0.11864901]
[1768767126522,0.09444,95361.0,95347.0,0.11864901]
[1768767126720,0.02368618,95360.0,95348.0,0.09954455]
[1768767126927,0.02368618,95359.0,95349.0,0.11864901]
[1768767127137,0.09444,95361.0,95351.0,0.11864901]
[1768767127334,0.09444,95364.0,95351.0,0.12914001]
[1768767127936,0.09459736,95366.0,95351.0,0.12914001]
[1768767128138,0.02368453,95365.0,95351.0,0.12914001]
[1768767128324,0.02368453,95364.0,95351.0,0.12914001]
[1768767128524,0.09459736,95366.0,95351.0,0.12914001]
[1768767128728,0.02368098,95365.0,95351.0,0.12914001]
[1768767129032,0.10466791,95361.0,95351.0,0.12914001]
[1768767130235,0.00015736,95366.0,95352.0,0.21819356]
[1768767130423,0.10466791,95362.0,95353.0,0.11864901]
[1768767130828,0.00015736,95366.0,95352.0,0.09954455]
[1768767131127,0.10466791,95362.0,95352.0,0.09954455]